bitfinex/quotes_SOLUSD_20260304
["timestamp","ask_amount","ask_price","bid_price","bid_amount"]
[1772587069288,5.45315841,86.9,86.88,0.1]
[1772587069289,15.66906323,86.896,86.88,0.1]
[1772587069493,11.50736494,86.901,86.88,0.1]
[1772587069670,11.50736494,86.901,86.871,4.24691686]
[1772587069870,5.45315841,86.9,86.87,0.2]
[1772587070072,4.16105366,86.899,86.87,0.2]
[1772587071694,4.16105366,86.897,86.87,0.2]
[1772587072776,4.16105366,86.879,86.841,4.24691686]
[1772587073077,4.16105366,86.879,86.842,4.24691686]
[1772587073276,40.27710649,86.898,86.84,0.2]
[1772587073277,4.16105366,86.869,86.84,0.2]
[1772587073481,4.16105366,86.877,86.842,4.24691686]
[1772587073688,4.16105366,86.875,86.843,11.51503287]
[1772587073887,4.16105366,86.875,86.843,15.76194973]
[1772587074081,4.16105366,86.875,86.843,11.51503287]
[1772587074280,4.16105366,86.875,86.844,4.24691686]
[1772587075684,15.67197752,86.874,86.844,4.24691686]
[1772587076297,4.16105366,86.873,86.844,4.24691686]
[1772587077284,4.16105366,86.873,86.84,0.2]
[1772587077811,4.16105366,86.871,86.84,0.2]
[1772587078298,5.45315841,86.86,86.84,0.2]
[1772587078605,5.45315841,86.87,86.84,0.2]
[1772587078912,4.40376626,86.859,86.802,11.52045567]
[1772587079202,4.07824868,86.829,86.799,4.24691686]
[1772587079394,4.07824868,86.829,86.792,4.24691686]
[1772587080098,4.07824868,86.827,86.792,4.24691686]
[1772587080487,4.07824868,86.843,86.801,4.24691686]
[1772587080796,4.07824868,86.841,86.81,5.45315841]
[1772587081003,4.07824868,86.848,86.811,4.24691686]
[1772587081198,4.07824868,86.848,86.793,40.32583272]
[1772587081199,4.07824868,86.839,86.801,4.24691686]
[1772587081379,40.29983073,86.849,86.801,4.24691686]
[1772587081380,4.07824868,86.842,86.801,4.24691686]
[1772587081582,4.07824868,86.848,86.811,4.24691686]
[1772587081989,11.51291173,86.859,86.821,4.24691686]
[1772587082290,11.51291173,86.859,86.823,4.24691686]
[1772587082695,4.07824868,86.858,86.823,4.24691686]
[1772587083491,5.45315841,86.85,86.81,5.45315841]
[1772587083709,5.45315841,86.84,86.811,4.24691686]
[1772587083917,4.07824868,86.839,86.806,11.51981755]
[1772587084088,4.07824868,86.839,86.806,15.76673441]
[1772587084288,4.07824868,86.839,86.807,4.24691686]
[1772587084289,11.51569589,86.838,86.807,4.24691686]
[1772587085589,15.59275119,86.847,86.811,4.24691686]
[1772587085793,4.07824868,86.846,86.811,4.24691686]
[1772587087208,4.07824868,86.846,86.808,11.5196756]
[1772587087209,4.07824868,86.855,86.821,4.24691686]
[1772587087405,4.07824868,86.859,86.821,4.24691686]
[1772587088005,4.07824868,86.849,86.821,4.24691686]
[1772587088213,4.07824868,86.849,86.822,11.51781806]
[1772587089698,4.07824868,86.849,86.821,4.24691686]
[1772587089903,11.51436993,86.848,86.821,15.76477747]
[1772587090107,11.5121165,86.865,86.822,4.24691686]
[1772587090407,11.5121165,86.865,86.831,4.24691686]
[1772587092708,11.51105636,86.873,86.833,4.24691686]
[1772587092914,11.51105636,86.873,86.841,4.24691686]
[1772587095217,11.51026139,86.879,86.843,4.24691686]
[1772587096112,4.07824868,86.878,86.843,4.24691686]
[1772587096805,11.50971704,86.884,86.843,4.24691686]
[1772587097209,11.50971704,86.884,86.851,4.24691686]
[1772587099315,11.50893668,86.889,86.853,4.12241183]
[1772587099906,11.50847055,86.893,86.853,4.12241183]
[1772587100417,4.07824868,86.894,86.853,4.12241183]
[1772587100726,15.58658913,86.894,86.853,4.12241183]
[1772587101022,5.45652002,86.89,86.853,4.12241183]
[1772587101909,11.50893668,86.889,86.855,4.35565179]
[1772587103416,11.50730745,86.902,86.861,4.35565179]
[1772587103723,5.45652002,86.9,86.861,4.35565179]
[1772587104220,4.07824868,86.898,86.863,4.35565179]
[1772587105927,11.50646639,86.908,86.871,4.35565179]
[1772587106622,15.58471507,86.908,86.873,4.35565179]
[1772587106821,4.07824868,86.899,86.866,4.35565179]
[1772587107240,5.45652002,86.89,86.866,4.35565179]
[1772587107408,8.0347687,86.89,86.866,4.35565179]
[1772587107805,4.07824868,86.889,86.854,4.35565179]
[1772587108026,4.07824868,86.879,86.847,4.35565179]
[1772587108607,4.07824868,86.869,86.839,4.35565179]
[1772587108923,4.07824868,86.869,86.832,4.35565179]
[1772587109826,4.07824868,86.867,86.834,4.35565179]
[1772587111522,40.29101624,86.868,86.82,5.45652002]
[1772587111523,4.07824868,86.859,86.821,4.35565179]
[1772587111719,5.45652002,86.84,86.814,4.35565179]
[1772587112225,56.31159159,86.9,86.816,4.35565179]
[1772587112226,4.07824868,86.847,86.816,4.35565179]
[1772587112717,1.83452583,86.84,86.816,4.35565179]
[1772587113113,4.07824868,86.839,86.805,11.52005158]
[1772587113318,4.07824868,86.839,86.804,4.35565179]
[1772587113925,4.07824868,86.847,86.806,4.35565179]
[1772587114124,11.5146351,86.846,86.811,4.35565179]
[1772587115421,50.85492667,86.9,86.831,4.35565179]
[1772587115422,4.07824868,86.866,86.831,4.35565179]
[1772587115727,4.07824868,86.859,86.824,4.35565179]
[1772587116923,4.07824868,86.857,86.824,4.35565179]
[1772587117133,1.83452583,86.84,86.802,4.35565179]
[1772587118615,4.07824868,86.844,86.802,4.35565179]
[1772587119434,15.59328155,86.843,86.804,4.35565179]
[1772587119614,11.51503287,86.843,86.804,4.35565179]
[1772587120225,15.59328155,86.843,86.804,4.35565179]
[1772587120538,4.07824868,86.849,86.821,4.35565179]
[1772587121328,11.51365421,86.854,86.823,4.35565179]
[1772587123027,3.69383402,86.882,86.801,4.35565179]
[1772587123028,4.07824868,86.839,86.801,4.35565179]
[1772587123831,4.07824868,86.839,86.806,4.35565179]
[1772587124537,15.59394457,86.838,86.806,4.35565179]
[1772587124717,15.59394457,86.838,86.808,4.35565179]
[1772587125635,11.51596112,86.836,86.808,4.35565179]
[1772587125832,4.07824868,86.835,86.808,4.35565179]
[1772587126417,4.07824868,86.829,86.79,1.83452583]
[1772587126735,40.30586392,86.836,86.78,28.90839026]
[1772587126736,4.07824868,86.819,86.789,4.35565179]
[1772587127442,1.83452583,86.8,86.761,4.35565179]
[1772587127735,1.83452583,86.8,86.764,4.35565179]
[1772587127736,11.52087005,86.799,86.764,4.35565179]
[1772587129044,11.52087005,86.799,86.76,5.66504511]
[1772587129045,4.03746619,86.779,86.76,0.2]
[1772587129333,4.03746619,86.779,86.75,0.1]
[1772587129334,5.46504511,86.77,86.75,0.1]
[1772587129538,9.5025113,86.77,86.75,0.1]
[1772587129928,11.52485334,86.769,86.75,0.1]
[1772587130533,4.03746619,86.768,86.74,0.1]
[1772587131644,4.03746619,86.768,86.74,4.23060131]
[1772587131944,11.52485334,86.769,86.741,4.13060131]
[1772587132142,4.03746619,86.785,86.743,4.13060131]
[1772587132332,46.06354587,86.837,86.751,4.13060131]
[1772587132333,9.5025113,86.79,86.751,4.13060131]
[1772587132530,4.03746619,86.789,86.751,4.13060131]
[1772587133131,4.03746619,86.779,86.74,5.56504511]
[1772587133337,4.03746619,86.769,86.741,4.13060131]
[1772587133538,0.28432314,86.778,86.74,0.1]
[1772587133539,4.03746619,86.759,86.74,0.1]
[1772587133740,4.03746619,86.751,86.74,0.05921751]
[1772587134126,20.98951415,86.75,86.728,1e-08]
[1772587134350,3.9571206,86.749,86.728,1e-08]
[1772587135930,11.52690893,86.754,86.728,4.13060132]
[1772587136246,3.69383402,86.772,86.728,4.13060132]
[1772587136247,3.9571206,86.769,86.731,4.13060131]
[1772587136543,3.9571206,86.759,86.728,1e-08]
[1772587136847,3.9571206,86.749,86.728,1e-08]
[1772587137346,3.9571206,86.766,86.728,1e-08]
[1772587137543,5.46504511,86.76,86.728,1e-08]
[1772587138039,3.9571206,86.757,86.728,1e-08]
[1772587140140,3.9571206,86.755,86.728,1e-08]
[1772587141152,5.46504511,86.76,86.728,1e-08]
[1772587141351,5.46504511,86.78,86.741,4.13060131]
[1772587141553,3.9571206,86.769,86.741,4.13060131]
[1772587142046,3.9571206,86.769,86.728,1e-08]
[1772587143453,3.9571206,86.759,86.728,1e-08]
[1772587144457,3.9571206,86.757,86.728,1e-08]
[1772587145135,11.52485334,86.769,86.731,4.13060131]
[1772587145333,46.07383152,86.818,86.741,4.13060131]
[1772587145334,11.52395774,86.776,86.741,4.13060131]
[1772587145734,11.52395774,86.776,86.74,5.46504511]
[1772587145735,5.46504511,86.79,86.751,4.13060131]
[1772587145939,11.52126826,86.796,86.761,4.13060131]
[1772587146249,11.52126826,86.796,86.771,4.13060131]
[1772587146446,11.5206046,86.801,86.773,4.13060131]
[1772587148858,3.9571206,86.812,86.773,4.13060131]
[1772587149264,9.77406658,86.802,86.78,5.46504511]
[1772587149470,4.3273306,86.829,86.791,4.13060131]
[1772587150559,4.3273306,86.829,86.781,4.13060131]
[1772587150939,4.3273306,86.827,86.791,4.13060131]
[1772587151578,4.3273306,86.819,86.782,11.52312691]
[1772587152847,4.3273306,86.819,86.782,15.65372822]
[1772587153165,4.3273306,86.817,86.782,15.65372822]
[1772587153553,4.3273306,86.817,86.78,5.46275707]
[1772587153874,4.3273306,86.817,86.775,11.52401521]
[1772587154354,4.3273306,86.817,86.78,5.46275707]
[1772587154556,4.3273306,86.817,86.776,4.13060131]
[1772587155353,4.3273306,86.815,86.778,4.13060131]
[1772587155558,4.3273306,86.815,86.78,9.59335838]
[1772587156178,11.51801361,86.821,86.781,4.13060131]
[1772587156351,4.3273306,86.819,86.781,4.13060131]
[1772587157858,11.51834872,86.818,86.782,11.52312691]
[1772587158065,4.3273306,86.817,86.782,11.52312691]
[1772587160263,4.49778104,86.815,86.781,4.17190033]
[1772587160568,4.49778104,86.809,86.781,4.17190033]
[1772587162364,16.01733172,86.809,86.782,11.52312691]
[1772587162962,4.49778104,86.826,86.783,4.17190033]
[1772587163164,4.49778104,86.819,86.777,11.52371975]
[1772587163680,4.49778104,86.819,86.778,4.17190033]
[1772587165878,4.49778104,86.847,86.801,4.17190033]
[1772587166376,4.49778104,86.839,86.801,4.17190033]
[1772587167553,4.49778104,86.839,86.81,9.6346574]
[1772587167754,4.49778104,86.847,86.82,5.46275707]
[1772587167980,4.49778104,86.847,86.813,4.17190033]
[1772587169965,4.49778104,86.845,86.815,4.17190033]
[1772587171582,4.49778104,86.839,86.798,4.17190033]
[1772587171776,4.49778104,86.839,86.801,4.17190033]
[1772587172667,4.49778104,86.837,86.803,4.17190033]
[1772587174976,4.49778104,86.835,86.805,4.17190033]
[1772587176563,11.51622636,86.834,86.807,4.17190033]
[1772587176981,4.49778104,86.829,86.791,11.52193199]
[1772587177367,4.49778104,86.829,86.791,15.69383232]
[1772587177566,4.49778104,86.829,86.792,4.17190033]
[1772587178575,4.49778104,86.838,86.801,4.17190033]
[1772587178984,11.51562493,86.839,86.793,40.32583272]
[1772587178985,4.49778104,86.829,86.793,11.52166649]
[1772587179384,4.49778104,86.829,86.793,15.69356682]
[1772587179570,4.49778104,86.829,86.794,4.17190033]
[1772587180079,4.49778104,86.827,86.78,1.83460936]
[1772587180388,4.49778104,86.827,86.783,28.8074663]
[1772587180572,4.49778104,86.827,86.79,1.83460936]
[1772587181688,4.49778104,86.841,86.8,1.83460936]
[1772587181990,4.49778104,86.839,86.8,1.83460936]
[1772587182171,4.49778104,86.837,86.803,0.83100815]
[1772587184084,4.49778104,86.835,86.804,11.52020644]
[1772587184885,4.49778104,86.835,86.803,0.83100815]
[1772587185384,4.49778104,86.835,86.8,11.52073275]
[1772587185586,4.49778104,86.835,86.795,11.52136192]
[1772587185787,4.49778104,86.819,86.77,13.35932988]
[1772587185992,4.49778104,86.819,86.771,0.83100815]
[1772587186291,4.49778104,86.817,86.773,0.83100815]
[1772587186785,4.49778104,86.817,86.781,0.83100815]
[1772587188491,4.25274433,86.815,86.782,11.52312691]
[1772587188794,4.25274433,86.815,86.782,12.35413506]
[1772587189384,1.83460936,86.83,86.791,0.83100815]
[1772587189385,4.25274433,86.829,86.791,0.83100815]
[1772587189587,4.25274433,86.828,86.791,0.83100815]
[1772587190782,4.25274433,86.826,86.783,0.83100815]
[1772587190978,4.25274433,86.809,86.771,11.5245877]
[1772587191199,0.28432314,86.818,86.73,1.83460936]
[1772587191200,0.28432314,86.798,86.731,0.83100815]
[1772587191500,4.25274433,86.779,86.73,1.83460936]
[1772587191798,4.25274433,86.779,86.734,0.83100815]
[1772587192002,4.25274433,86.779,86.741,0.83100815]
[1772587192698,4.25274433,86.777,86.733,11.52963693]
[1772587192887,4.25274433,86.775,86.734,0.83100815]
[1772587195703,4.25274433,86.773,86.74,1.83460936]
[1772587197507,4.25274433,86.773,86.741,11.52857356]
[1772587197707,1.83460936,86.8,86.76,1.83460936]
[1772587197910,4.25274433,86.799,86.76,1.83460936]
[1772587198098,4.25274433,86.799,86.753,0.83100815]
[1772587198285,4.25274433,86.789,86.75,1.83460936]
[1772587198489,4.25274433,86.789,86.751,0.83100815]
[1772587200011,4.25274433,86.789,86.752,11.52711176]
[1772587200711,4.25274433,86.787,86.752,11.52711176]
[1772587201112,4.25274433,86.787,86.752,40.34489117]
[1772587201608,4.25274433,86.787,86.76,1.83460936]
[1772587201917,1.83460936,86.82,86.752,40.34489117]
[1772587201918,1.83460936,86.81,86.771,4.05288642]
[1772587202098,13.35406884,86.81,86.773,4.05288642]
[1772587202616,13.35406884,86.81,86.709,46.13082359]
[1772587202617,1.83460936,86.8,86.751,4.05288642]
[1772587203113,1.83460936,86.79,86.751,4.05288642]
[1772587203813,4.25274433,86.789,86.751,4.05288642]
[1772587205316,4.25274433,86.787,86.753,4.05288642]
[1772587205495,4.25274433,86.779,86.752,11.52711176]
[1772587206824,4.25274433,86.779,86.743,4.05288642]
[1772587207594,4.25274433,86.779,86.745,4.05288642]
[1772587207791,4.25274433,86.789,86.751,4.05288642]
[1772587209630,4.25274433,86.787,86.753,4.05288642]
[1772587209834,4.25274433,86.779,86.752,11.52711176]
[1772587212199,4.25274433,86.778,86.752,11.52711176]
[1772587213112,4.25274433,86.778,86.747,11.52767292]
[1772587214002,4.25274433,86.776,86.747,11.52767292]
[1772587214608,4.25274433,86.776,86.747,15.58055934]
[1772587214794,4.25274433,86.776,86.74,1.83692894]
[1772587214795,4.25274433,86.776,86.748,4.05288642]
[1772587217002,4.25274433,86.792,86.751,4.05288642]
[1772587217200,4.25274433,86.79,86.751,4.05288642]
[1772587217503,4.25274433,86.789,86.751,4.05288642]
[1772587220017,28.80254423,86.798,86.721,4.26841552]
[1772587220018,4.48705348,86.769,86.721,4.26841552]
[1772587220420,4.48705348,86.759,86.722,11.531031]
[1772587220613,4.48705348,86.749,86.72,0.1]
[1772587222214,4.48705348,86.749,86.721,4.26841552]
[1772587223614,4.48705348,86.76,86.721,4.26841552]
[1772587223943,4.48705348,86.749,86.72,0.1]
[1772587225239,4.48705348,86.747,86.72,0.1]
[1772587226624,28.8154543,86.759,86.72,0.1]
[1772587226625,4.48705348,86.759,86.721,4.26841552]
[1772587227233,4.48705348,86.757,86.722,11.53109937]
[1772587228318,4.48705348,86.757,86.722,15.79951489]
[1772587228523,4.48705348,86.749,86.72,0.1]
[1772587229236,4.48705348,86.749,86.721,11.53123234]
[1772587229439,4.48705348,86.749,86.721,4.26841552]
[1772587229833,4.48705348,86.749,86.72,0.1]
[1772587230020,4.48705348,86.747,86.72,0.1]
[1772587230623,4.48705348,86.747,86.721,4.26841552]
[1772587231739,4.48705348,86.747,86.72,11.63125407]
[1772587233038,4.48705348,86.745,86.72,0.1]
[1772587233423,4.48705348,86.745,86.72,4.36841552]
[1772587234335,4.48705348,86.745,86.72,0.1]
[1772587234740,4.48705348,86.739,86.697,4.26841552]
[1772587234945,4.48705348,86.737,86.7,11.63395345]
[1772587235446,4.48705348,86.737,86.704,23.28145516]
[1772587235943,11.5289723,86.738,86.704,23.28145516]
[1772587235944,4.48705348,86.729,86.704,11.74800813]
[1772587236246,4.48705348,86.719,86.704,3.31881409]
[1772587237242,4.44218294,86.726,86.704,3.31881409]
[1772587238036,1.83692894,86.73,86.705,4.26841552]
[1772587238643,1.83692894,86.74,86.706,4.26841552]
[1772587238841,46.08272031,86.801,86.711,4.26841552]
[1772587238842,1.83692894,86.75,86.711,4.26841552]
[1772587239431,6.27911188,86.76,86.721,4.26841552]
[1772587240240,17.80521903,86.76,86.721,4.26841552]
[1772587240443,4.44218294,86.759,86.721,4.26841552]
[1772587241851,4.44218294,86.757,86.723,4.26841552]
[1772587244445,4.44218294,86.755,86.723,4.26841552]
[1772587244630,1.83692894,86.75,86.723,4.26841552]
[1772587244950,4.44218294,86.755,86.723,4.26841552]
[1772587245448,4.44218294,86.749,86.724,15.79924896]
[1772587245748,4.44218294,86.749,86.725,4.26841552]
[1772587247135,4.44218294,86.739,86.707,4.26841552]
[1772587248643,1.83692894,86.73,86.707,4.26841552]
[1772587248946,6.24480226,86.73,86.707,4.26841552]
[1772587249753,15.93797543,86.73,86.707,4.26841552]
[1772587250251,4.40787332,86.759,86.709,4.14446824]
[1772587250448,4.40787332,86.757,86.711,4.14446824]
[1772587250652,0.28432314,86.758,86.704,3.31881409]
[1772587250653,4.40787332,86.739,86.705,4.14446824]
[1772587251936,4.40787332,86.737,86.707,4.14446824]
[1772587252136,4.40787332,86.742,86.707,4.14446824]
[1772587253137,1.83692894,86.74,86.707,4.14446824]
[1772587253338,4.40787332,86.739,86.707,4.14446824]
[1772587254150,4.40787332,86.729,86.704,3.31881409]
[1772587254455,4.40787332,86.729,86.705,4.14446824]
[1772587255436,40.6357262,86.738,86.69,1.93692894]
[1772587255437,4.40787332,86.717,86.69,0.02081984]
[1772587255641,1.83692894,86.72,86.64,1.93692894]
[1772587255642,4.36379458,86.697,86.654,11.54008275]
[1772587255858,1.83692894,86.7,86.661,4.14446824]
[1772587256168,1.83692894,86.7,86.662,4.14446824]
[1772587256347,11.53415841,86.699,86.662,4.14446824]
[1772587256658,3.69383402,86.721,86.661,11.53921602]
[1772587256659,11.53033614,86.728,86.691,4.14446824]
[1772587257375,11.53033614,86.728,86.67,1.83692894]
[1772587257376,11.52883939,86.739,86.701,4.14446824]
[1772587258365,4.36379458,86.738,86.703,4.14446824]
[1772587258756,4.36379458,86.727,86.692,4.14446824]
[1772587258947,4.36379458,86.727,86.64,1.93692894]
[1772587258948,4.36379458,86.719,86.685,4.14446824]
[1772587259150,4.36379458,86.719,86.678,4.14446824]
[1772587260154,4.36379458,86.719,86.68,1.83692894]
[1772587260472,4.36379458,86.719,86.683,4.14446824]
[1772587260473,11.53163126,86.718,86.683,4.14446824]
[1772587260644,4.36379458,86.717,86.683,4.14446824]
[1772587261261,4.36379458,86.717,86.681,11.53649616]
[1772587261462,4.36379458,86.699,86.66,11.6393334]
[1772587261678,4.36379458,86.699,86.661,4.14446824]
[1772587262846,4.36379458,86.697,86.661,4.14446824]
[1772587263047,11.53429144,86.698,86.66,0.1]
[1772587263048,4.36379458,86.689,86.66,0.1]
[1772587263273,4.36379458,86.689,86.61,1.93692894]
[1772587263274,4.60447977,86.668,86.64,0.1]
[1772587263469,4.60447977,86.668,86.61,0.1]
[1772587263470,4.2341855,86.647,86.61,0.1]
[1772587263685,4.2341855,86.647,86.6,0.2]
[1772587263686,1.83692894,86.62,86.6,0.2]
[1772587263969,1.83692894,86.64,86.605,4.14446824]
[1772587264165,4.2341855,86.629,86.6,0.2]
[1772587264951,4.2341855,86.627,86.6,0.2]
[1772587265354,6.07111444,86.66,86.621,4.14446824]
[1772587265751,4.2341855,86.659,86.621,4.14446824]
[1772587266072,1.83692894,86.65,86.621,4.14446824]
[1772587266253,11.54081408,86.649,86.621,4.14446824]
[1772587268273,11.54081408,86.649,86.622,11.54441135]
[1772587268452,11.54081408,86.649,86.622,4.14446824]
[1772587269265,15.77499958,86.649,86.622,4.14446824]
[1772587269958,11.54081408,86.649,86.622,4.14446824]
[1772587270161,15.77499958,86.649,86.622,4.14446824]
[1772587271773,1.83692894,86.65,86.622,4.14446824]
[1772587271975,11.53588814,86.686,86.641,4.14446824]
[1772587272159,11.53588814,86.686,86.651,4.14446824]
[1772587272468,15.77007364,86.686,86.651,4.14446824]
[1772587272775,4.2341855,86.685,86.651,4.14446824]
[1772587272961,4.2341855,86.679,86.64,1.84135916]
[1772587273157,4.2341855,86.679,86.641,4.14446824]
[1772587274156,11.53588814,86.686,86.641,4.14446824]
[1772587274358,11.53588814,86.686,86.651,4.14446824]
[1772587274571,11.53588814,86.686,86.638,4.14446824]
[1772587274572,4.2341855,86.669,86.638,4.14446824]
[1772587274771,4.2341855,86.669,86.598,166.6]
[1772587274772,1.84135916,86.66,86.632,4.14446824]
[1772587274963,4.2341855,86.659,86.632,4.14446824]
[1772587275164,1.84135916,86.67,86.633,4.14446824]
[1772587275674,4.2341855,86.669,86.633,4.14446824]
[1772587276775,11.53772295,86.673,86.635,4.14446824]
[1772587277476,1.84135916,86.67,86.635,4.14446824]
[1772587279979,11.53815089,86.669,86.636,4.43775786]
[1772587280470,15.77233639,86.669,86.636,4.43775786]
[1772587280973,15.77233639,86.669,86.637,4.43775786]
[1772587281558,4.2341855,86.668,86.637,4.43775786]
[1772587281760,11.54081408,86.649,86.62,4.43775786]
[1772587282380,4.2341855,86.648,86.62,4.43775786]
[1772587282581,4.2341855,86.629,86.604,1e-08]
[1772587282873,1.84135916,86.64,86.55,1.84135916]
[1772587282874,4.2341855,86.619,86.576,4.43775786]
[1772587283460,1.84135916,86.61,86.576,4.43775786]
[1772587283965,4.2341855,86.617,86.578,4.43775786]
[1772587284688,4.2341855,86.609,86.578,4.43775786]
[1772587284979,4.2341855,86.617,86.578,4.43775786]
[1772587285186,5.48896156,86.61,86.58,4.43775786]
[1772587285680,11.54521104,86.616,86.58,4.43775786]
[1772587285862,3.69383402,86.641,86.579,11.55014495]
[1772587285863,5.48896156,86.64,86.601,4.43775786]
[1772587286058,4.2341855,86.639,86.601,4.43775786]
[1772587286263,4.2341855,86.629,86.593,4.43775786]
[1772587286763,4.2341855,86.619,86.581,4.43775786]
[1772587287282,11.54494446,86.618,86.583,4.43775786]
[1772587287583,15.77912996,86.618,86.583,4.43775786]
[1772587288575,11.54419581,86.624,86.583,4.43775786]
[1772587289091,11.54441135,86.622,86.585,4.43775786]
[1772587289673,11.54227936,86.638,86.591,4.43775786]
[1772587289882,4.2341855,86.637,86.591,4.43775786]
[1772587290080,4.2341855,86.629,86.581,4.43775786]
[1772587290282,40.39797778,86.638,86.573,4.43775786]
[1772587290283,4.2341855,86.609,86.573,4.43775786]
[1772587290780,5.48896156,86.63,86.591,4.43775786]
[1772587291178,11.54347851,86.629,86.592,4.43775786]
[1772587291376,4.2341855,86.609,86.577,4.43775786]
[1772587293176,11.54627748,86.608,86.579,4.43775786]
[1772587293378,46.16969226,86.637,86.578,11.55027836]
[1772587293379,4.2341855,86.617,86.581,4.43775786]
[1772587293579,4.2341855,86.609,86.581,4.43775786]
[1772587294575,4.2341855,86.599,86.563,4.43775786]
[1772587294772,4.2341855,86.599,86.564,11.55214638]
[1772587294996,5.48896156,86.59,86.563,4.43775786]
[1772587295199,4.2341855,86.585,86.545,4.43775786]
[1772587295495,4.2341855,86.585,86.548,11.55418929]
[1772587295678,4.2341855,86.585,86.545,4.43775786]
[1772587296191,4.2341855,86.602,86.56,5.48896156]
[1772587296991,3.69383402,86.628,86.555,4.43775786]
[1772587296992,4.2341855,86.598,86.555,4.43775786]
[1772587297179,4.2341855,86.596,86.557,4.43775786]
[1772587297691,4.2341855,86.579,86.54,4.43775786]
[1772587297883,5.48896156,86.58,86.541,4.43775786]
[1772587298199,4.2341855,86.587,86.541,4.43775786]
[1772587298676,4.2341855,86.587,86.551,4.43775786]
[1772587298879,4.2341855,86.596,86.551,4.43775786]
[1772587301099,4.2341855,86.589,86.551,4.43775786]
[1772587301686,4.2341855,86.589,86.552,11.55374803]
[1772587301890,4.2341855,86.589,86.553,4.43775786]
[1772587302096,11.54536145,86.615,86.571,4.43775786]
[1772587302297,5.48896156,86.6,86.551,4.43775786]
[1772587302493,4.2341855,86.599,86.551,4.43775786]
[1772587303206,4.2341855,86.589,86.552,4.43775786]
[1772587304301,4.2341855,86.589,86.546,11.55448992]
[1772587304783,4.2341855,86.569,86.521,4.43775786]
[1772587304987,4.2341855,86.559,86.521,4.43775786]
[1772587305298,11.55294715,86.558,86.523,4.43775786]
[1772587306007,4.2341855,86.576,86.531,4.43775786]
[1772587306307,4.2341855,86.588,86.541,4.43775786]
[1772587306494,4.2341855,86.596,86.561,4.43775786]
[1772587306692,11.54606516,86.61,86.571,4.43775786]
[1772587306895,11.54606516,86.61,86.58,5.48896156]
[1772587307096,4.2341855,86.617,86.58,5.48896156]
[1772587307097,4.2341855,86.614,86.581,4.43775786]
[1772587307308,4.2341855,86.614,86.583,4.43775786]
[1772587307309,11.54561093,86.613,86.583,4.43775786]
[1772587307493,15.77979643,86.613,86.583,4.43775786]
[1772587307686,4.2341855,86.612,86.583,4.43775786]
[1772587307885,4.2341855,86.612,86.574,4.43775786]
[1772587308088,4.2341855,86.609,86.574,4.43775786]
[1772587308414,4.2341855,86.609,86.574,15.98854669]
[1772587308706,4.2341855,86.609,86.581,4.3235115]
[1772587309089,4.2341855,86.609,86.574,11.55078883]
[1772587309410,11.54627748,86.608,86.574,4.3235115]
[1772587309715,4.2341855,86.609,86.58,9.81247306]
[1772587309944,11.54374502,86.627,86.581,4.3235115]
[1772587310289,4.2341855,86.626,86.581,4.3235115]
[1772587311012,4.2341855,86.619,86.581,4.3235115]
[1772587311389,4.2341855,86.617,86.583,4.3235115]
[1772587311917,4.2341855,86.609,86.574,4.3235115]
[1772587312206,4.2341855,86.609,86.575,15.8741901]
[1772587312391,4.2341855,86.609,86.576,4.3235115]
[1772587313410,11.54627748,86.608,86.578,4.3235115]
[1772587313790,4.2341855,86.609,86.578,4.3235115]
[1772587314007,11.54571262,86.613,86.578,4.3235115]
[1772587314410,15.77989812,86.613,86.578,4.3235115]
[1772587314611,4.2341855,86.612,86.578,4.3235115]
[1772587314911,5.48896156,86.62,86.578,4.3235115]
[1772587315114,11.54361176,86.628,86.591,4.3235115]
[1772587315610,4.2341855,86.627,86.592,4.3235115]
[1772587315795,4.2341855,86.619,86.581,4.3235115]
[1772587316204,5.48896156,86.59,86.551,4.3235115]
[1772587316403,5.48896156,86.58,86.551,4.3235115]
[1772587316604,5.48896156,86.59,86.551,4.3235115]
[1772587317490,4.2341855,86.589,86.551,4.3235115]
[1772587317712,4.2341855,86.587,86.551,4.3235115]
[1772587318209,4.2341855,86.587,86.553,4.3235115]
[1772587318593,5.48896156,86.58,86.544,4.3235115]
[1772587319012,44.65549098,86.588,86.544,4.3235115]
[1772587319614,4.2341855,86.569,86.524,4.3235115]
[1772587319825,11.54921118,86.586,86.541,4.3235115]
[1772587320023,4.2341855,86.585,86.541,4.3235115]
[1772587320322,4.2341855,86.585,86.528,11.55684432]
[1772587320323,5.48896156,86.6,86.561,4.3235115]
[1772587320618,5.48896156,86.6,86.528,11.55684432]
[1772587320619,4.2341855,86.604,86.571,4.3235115]
[1772587320824,5.48896156,86.61,86.571,4.3235115]
[1772587320998,11.54347851,86.629,86.581,4.3235115]
[1772587321310,4.2341855,86.633,86.591,4.3235115]
[1772587321527,11.54081408,86.649,86.611,4.3235115]
[1772587321697,11.54081408,86.649,86.613,4.3235115]
[1772587322524,4.2341855,86.639,86.572,4.3235115]
[1772587322704,4.2341855,86.639,86.571,11.55121229]
[1772587322705,4.2341855,86.639,86.591,4.3235115]
[1772587322902,4.2341855,86.639,86.601,4.3235115]
[1772587323102,5.48896156,86.64,86.601,4.3235115]